fUSD/lending_fUSD_20250403
["ID","MTS","AMOUNT","RATE_DAILY","PERIOD"]
[357049873,1743638815136,-250.0,0.00022643,2]
[357049874,1743638815160,-350.0,0.00022643,12]
[357049875,1743638815183,-644.37456499,0.000227,2]
[357049876,1743638844140,-2421.22218,0.00022529,2]
[357049877,1743638844163,-1495.73204292,0.000226,2]
[357049878,1743638844185,-1367.45024858,0.000227,2]
[357049879,1743638846105,-3.76518643,0.000227,2]
[357049880,1743638846129,-250.0,0.00022749,2]
[357049881,1743638846151,-350.0,0.00022749,12]
[357049882,1743638846174,-428.83789786,0.00022815,2]
[357049883,1743638849121,-71.16210214,0.00022815,2]
[357049884,1743638849142,-500.0,0.00022815,2]
[357049885,1743638849165,-360.2497803,0.00022815,2]
[357049886,1743638853092,-87.98297977,0.00022815,2]
[357049887,1743638853115,-2779.20907597,0.00023038,2]
[357049911,1743639036700,-1743.0,0.00021,5]
[357049912,1743639036709,-5012.71620559,0.00023038,2]
[357049913,1743639036764,-1967.34484244,0.00023038,2]
[357049922,1743639038104,-1146.63664042,0.00023038,2]
[357049923,1743639038224,-899.1983,0.00023038,2]
[357049926,1743639040157,-423.57242892,0.00023038,2]
[357049927,1743639040169,-597.98562491,0.00023038,2]
[357049928,1743639040273,-302.84192,0.00023038,2]
[357049995,1743639044077,-2334.87377198,0.00023038,2]
[357049996,1743639044258,-8592.86408801,0.00023038,2]
[357049997,1743639044419,-138.26384059,0.00023038,2]
[357049998,1743639044437,-301.63125129,0.00023038,2]
[357050033,1743639046196,-4965.27620892,0.00023038,2]
[357050034,1743639046209,-626.5410972,0.00023038,2]
[357050035,1743639046220,-271.9288,0.00023038,2]
[357050036,1743639046317,-363.8572065,0.00023038,2]
[357050056,1743639701649,500.0,0.00034636,120]
[357050057,1743639787321,1155.0,0.00034636,120]
[357050058,1743639961681,350.0,0.00014995,12]
[357050061,1743639987310,555.10670167,0.00014899,2]
[357050062,1743640027134,-1515.81655819,0.0001499,2]
[357050063,1743640027159,-8694.01602227,0.00015,2]
[357050064,1743640039112,-3660.71156923,0.00015,2]
[357050065,1743640043575,3000.0,0.000149,5]
[357050066,1743640054095,-1831.94584225,0.00015,2]
[357050067,1743640091487,-156.62740908,0.00014999,2]
[357050068,1743640096334,1424.09763435,0.000149,2]
[357050069,1743640102774,555.10670166,0.000149,2]
[357050070,1743640103566,-150.0,0.00014925,2]
[357050071,1743640112278,1532.34330594,0.00034636,120]
[357050072,1743640113420,1835.06747114,0.000149,2]
[357050073,1743640162107,-1274.09763434,0.00014925,2]
[357050074,1743640162354,-1424.09763434,0.0001495,2]
[357050075,1743640162375,-175.7123873,0.00014999,2]
[357050076,1743640162400,-1646.66505802,0.00015,2]
[357050077,1743640164590,-154.06681593,0.00015,2]
[357050096,1743640232245,-1682.17841262,0.00015,2]
[357050101,1743640232495,-1050.0,0.00015,2]
[357050105,1743640232561,-3285.42564632,0.00015,2]
[357050110,1743640238035,-363.50002513,0.00015,2]
[357050111,1743640238046,-8079.61965227,0.00015,2]
[357050112,1743640238059,-32382.70320753,0.00015,2]
[357050113,1743640238090,-577.31165299,0.00015,2]
[357050114,1743640238102,-6858.28012412,0.00015,2]
[357050115,1743640238149,-4079.38824232,0.00015,2]
[357050116,1743640238160,-786.9152623,0.00015,2]
[357050117,1743640238203,-4153.25,0.00015,2]
[357050118,1743640238214,-3230.83636141,0.00015,2]
[357050119,1743640238226,-3110.01716113,0.00015,2]
[357050120,1743640238240,-2048.003565,0.00015,2]
[357050121,1743640238251,-4059.62035122,0.00015,2]
[357050123,1743640238264,-1795.08269747,0.00015,2]
[357050125,1743640238275,-1091.29085465,0.00015,2]
[357050126,1743640238286,-1643.58931973,0.00015,2]
[357050127,1743640238297,-1307.14754349,0.00015,2]
[357050128,1743640238308,-25006.48436685,0.00015,2]
[357050130,1743640238323,-4688.42003455,0.00015,2]
[357050196,1743640240519,-511.96931703,0.00015,2]
[357050197,1743640240576,-415.9229398,0.00015,2]
[357050198,1743640240632,-31633.67996175,0.00015,2]
[357050477,1743640244168,-1638.27370899,0.00015,2]
[357050480,1743640246472,-2764.23928036,0.00015,2]
[357050481,1743640246484,-7777.18179762,0.00015,2]
[357050482,1743640246511,-2479.5771,0.00015,2]
[357050483,1743640246523,-5553.0,0.00015,2]
[357050508,1743640261574,307.98384103,0.0001485,2]
[357050509,1743640263624,-173.45243632,0.00014999,2]
[357050510,1743640371109,4226.50243297,0.000149,2]
[357050511,1743640381709,4220.56409,0.0001485,2]
[357050512,1743640651598,3868.67451643,0.000149,2]
[357050513,1743640710541,878.81365836,0.000147,2]
[357050514,1743640710570,77.12234164,0.000147,2]
[357050515,1743640710602,187.492,0.000147,2]
[357050516,1743640792845,153.59128,0.00015,13]
[357050524,1743640869486,392.75603891,0.00014569,2]
[357050525,1743641162010,-255.17549216,0.00014899,2]
[357050526,1743641231723,2800.0,0.000148,5]
[357050527,1743641233819,5700.0,0.000149,5]
[357050528,1743641239138,-4259.6588,0.000149,2]
[357050529,1743641239160,-1825.9454,0.000149,2]
[357050530,1743641239181,-2284.41669287,0.000149,2]
[357050531,1743641239202,-166.09434824,0.000149,2]
[357050532,1743641239224,-250.0,0.00014923,2]
[357050533,1743641239246,-250.0,0.00014961,2]
[357050534,1743641239267,-181.05034724,0.00014973,2]
[357050535,1743641239288,-238.43168524,0.00014973,2]
[357050536,1743641244133,-261.56831476,0.00014973,2]
[357050537,1743641244156,-319.05841768,0.00014973,2]
[357050538,1743641244178,-500.0,0.00014973,2]
[357050539,1743641244201,-152.94080743,0.00014973,2]
[357050540,1743641244223,-500.0,0.00014973,2]
[357050541,1743641244245,-163.95839373,0.00014973,2]
[357050542,1743641244267,-181.34053378,0.00014973,2]
[357050543,1743641244290,-500.0,0.00014973,2]
[357050544,1743641244313,-260.40555914,0.0001499,2]
[357050545,1743641244335,-300.0,0.00014999,2]
[357050546,1743641244363,-1001.87793319,0.00015,2]
[357050547,1743641252093,-1315.38126314,0.00015,2]
[357050551,1743641432360,-3481.80706476,0.000149,2]
[357050552,1743641432369,-167.38272778,0.000149,2]
[357050553,1743641432379,-3902.25652818,0.000149,2]
[357050554,1743641432388,-250.0,0.0001495,2]
[357050555,1743641432398,-500.0,0.00014973,2]
[357050556,1743641432407,-156658.16606538,0.00015,2]
[357050557,1743641432418,-12126.74582555,0.00015,2]
[357050558,1743641432434,-1665.4484676,0.00015,2]
[357050636,1743641438240,-3272.795,0.00015,2]
[357050638,1743641438252,-369.50775994,0.00015,2]
[357050640,1743641438263,-21484.31459232,0.00015,2]
[357050641,1743641438403,-2072.95149155,0.00015,2]
[357050642,1743641438415,-4003.0,0.00015,2]
[357050643,1743641438458,-1103.565853,0.00015,2]
[357050644,1743641438567,-452180.35993787,0.00015,2]
[357050645,1743641438577,-666878.92498115,0.00015,2]
[357050646,1743641438587,-201.1619028,0.00015,2]
[357050647,1743641438596,-169.17420686,0.00015,2]
[357050648,1743641438605,-1517.64,0.000153,2]
[357050649,1743641438614,-1068.40958,0.00015399,5]
[357050650,1743641438624,-14609.01498886,0.000154,2]
[357050652,1743641438633,-350.0,0.0001639,12]
[357050654,1743641438642,-250.0,0.0001639,2]
[357050656,1743641438652,-350.0,0.0001639,12]
[357050658,1743641438661,-250.0,0.0001639,2]
[357050660,1743641438670,-350.0,0.0001639,12]
[357050662,1743641438680,-3902.25652816,0.00017662,2]
[357050664,1743641438690,-150.0,0.00017711,2]
[357050666,1743641438699,-3481.80706475,0.00018,2]
[357050668,1743641438709,-500.0,0.00018247,2]
[357050669,1743641438718,-153.26308809,0.00019,2]
[357050670,1743641438727,-510.08696044,0.00019,2]
[357050671,1743641438736,-1303.81,0.00019387,2]
[357050672,1743641438745,-151.51,0.0002,2]
[357050673,1743641438754,-151.51,0.0002,2]
[357050674,1743641438763,-151.51,0.0002,2]
[357050675,1743641438772,-151.51,0.0002,2]
[357050676,1743641438781,-3902.25652816,0.00020424,2]
[357050677,1743641438791,-339.92,0.00020631,3]
[357050678,1743641438800,-16440.0,0.00020751,2]
[357050679,1743641438809,-200.0,0.00020782,2]
[357050680,1743641438818,-200.0,0.00020785,2]
[357050681,1743641438827,-183.89,0.00020799,2]
[357050682,1743641438837,-260.40555912,0.00020808,2]
[357050683,1743641438846,-155.73,0.00020817,2]
[357050684,1743641438855,-151.51,0.00020842,2]
[357050685,1743641438865,-23900.0,0.00020852,2]
[357050686,1743641438875,-151.0,0.00020852,2]
[357050687,1743641438884,-151.0,0.00020852,2]
[357050688,1743641438894,-153.776145,0.00020852,2]
[357050689,1743641438904,-626.278734,0.00020852,2]
[357050690,1743641438913,-151.0,0.00020852,2]
[357050691,1743641438923,-626.278734,0.00020852,2]
[357050692,1743641438934,-151.0,0.00020852,2]
[357050693,1743641438944,-151.0,0.00020852,2]
[357050694,1743641438953,-151.0,0.00020852,2]
[357050695,1743641438962,-154.881148,0.00020852,2]
[357050696,1743641438972,-151.0,0.00020852,2]
[357050697,1743641438981,-151.0,0.00020852,2]
[357050698,1743641438991,-151.0,0.00020852,2]
[357050699,1743641439000,-784.782824,0.00020852,2]
[357050700,1743641439010,-784.782824,0.00020852,2]
[357050701,1743641439019,-151.0,0.00020852,2]
[357050702,1743641439029,-151.0,0.00020852,2]
[357050703,1743641439039,-151.0,0.00020852,2]
[357050704,1743641439049,-151.0,0.00020852,2]
[357050705,1743641439058,-175.459424,0.00020852,2]
[357050706,1743641439071,-175.459424,0.00020852,2]
[357050707,1743641439081,-151.0,0.00020852,2]
[357050708,1743641439091,-158.990832,0.00020852,2]
[357050709,1743641439101,-293.115509,0.00020852,2]
[357050710,1743641439111,-151.0,0.00020852,2]
[357050711,1743641439121,-151.0,0.00020852,2]
[357050712,1743641439131,-151.947987,0.00020852,2]
[357050713,1743641439142,-151.0,0.00020852,2]
[357050714,1743641439151,-151.0,0.00020852,2]
[357050715,1743641439161,-151.0,0.00020852,2]
[357050716,1743641439172,-151.0,0.00020852,2]
[357050717,1743641439182,-151.0,0.00020852,2]
[357050718,1743641439192,-151.0,0.00020852,2]
[357050719,1743641439202,-151.0,0.00020852,2]
[357050720,1743641439211,-152.310019,0.00020852,2]
[357050721,1743641439222,-151.0,0.00020852,2]
[357050722,1743641439232,-151.0,0.00020852,2]
[357050723,1743641439241,-151.0,0.00020852,2]
[357050724,1743641439251,-4425.654875,0.00020852,2]
[357050725,1743641439260,-151.0,0.00020852,2]
[357050726,1743641439270,-4425.654875,0.00020852,2]
[357050727,1743641439279,-151.0,0.00020852,2]
[357050728,1743641439290,-239.185709,0.00020852,2]
[357050729,1743641439300,-151.0,0.00020852,2]
[357050730,1743641439310,-151.0,0.00020852,2]
[357050731,1743641439319,-151.0,0.00020852,2]
[357050732,1743641439329,-151.0,0.00020852,2]
[357050733,1743641439339,-151.0,0.00020852,2]
[357050734,1743641439348,-151.0,0.00020852,2]
[357050735,1743641439359,-250.0,0.00020905,2]
[357050736,1743641439369,-1396.0,0.00020945,2]
[357050737,1743641439379,-150.0,0.00020982,7]
[357050738,1743641439388,-3481.80706475,0.000211,2]
[357050739,1743641439398,-151.0,0.00021122,2]
[357050740,1743641439407,-151.0,0.00021122,2]
[357050741,1743641439417,-153.327159,0.00021122,2]
[357050742,1743641439429,-151.0,0.00021122,2]
[357050743,1743641439439,-157.109746,0.00021122,2]
[357050744,1743641439448,-156.216439,0.00021122,2]
[357050745,1743641439458,-151.0,0.00021122,2]
[357050746,1743641439468,-151.0,0.00021122,2]
[357050747,1743641439478,-151.0,0.00021122,2]
[357050748,1743641439488,-281.622357,0.00021122,2]
[357050749,1743641439502,-150.0,0.00021231,2]
[357050750,1743641439512,-4559.41,0.00021394,2]
[357050751,1743641439522,-1303.81,0.00021651,2]
[357050752,1743641439531,-500.0,0.00021897,2]
[357050753,1743641439546,-150.0,0.00021917,2]
[357050754,1743641439556,-2751.0,0.0002192,2]
[357050755,1743641439565,-1000.0,0.00021965,2]
[357050756,1743641439575,-151.0,0.00022178,7]
[357050757,1743641439586,-292.13785,0.00022178,7]
[357050758,1743641439595,-2013.87,0.00022206,2]
[357050759,1743641439605,-500.0,0.00022311,2]
[357050760,1743641439616,-500.0,0.00022311,2]
[357050761,1743641439627,-500.0,0.00022346,2]
[357050762,1743641439637,-500.0,0.00022346,2]
[357050763,1743641439647,-500.0,0.00022346,2]
[357050764,1743641439656,-196.660901,0.00022802,7]
[357050765,1743641439665,-271.211876,0.00022802,7]
[357050766,1743641439675,-151.0,0.00022802,7]
[357050767,1743641439684,-151.0,0.00022802,7]
[357050768,1743641439694,-151.0,0.00022802,7]
[357050769,1743641439703,-151.0,0.00022802,7]
[357050770,1743641439712,-151.0,0.00022802,7]
[357050771,1743641439722,-4425.654875,0.00022802,7]
[357050772,1743641439731,-4425.654875,0.00022802,7]
[357050773,1743641439741,-195.494394,0.00022802,7]
[357050774,1743641439750,-166.66,0.00022803,2]
[357050775,1743641439763,-151.0,0.00022833,7]
[357050776,1743641439772,-151.0,0.00022833,7]
[357050777,1743641439782,-169.43723,0.00022833,7]
[357050778,1743641439791,-151.757808,0.00022833,7]
[357050779,1743641439800,-155.73,0.00022899,2]
[357050780,1743641439810,-183.0,0.00023037,2]
[357050781,1743641439819,-193.06146179,0.00023038,2]
[357050782,1743641439828,-9486.9653042,0.00023127,2]
[357050783,1743641439837,-151.0,0.00023127,7]
[357050784,1743641439846,-151.0,0.00023127,7]
[357050785,1743641439855,-151.0,0.00023127,7]
[357050786,1743641439865,-208.217218,0.00023127,7]
[357050787,1743641439876,-151.0,0.00023127,7]
[357050788,1743641439886,-151.0,0.00023127,7]
[357050789,1743641439895,-206.032648,0.00023127,7]
[357050790,1743641439905,-3082.8963055,0.00023143,2]
[357050791,1743641439914,-152.607418,0.00023159,7]
[357050792,1743641439923,-152.629964,0.00023159,7]
[357050793,1743641439934,-151.0,0.00023159,7]
[357050794,1743641439944,-159.59579,0.00023159,7]
[357050795,1743641439954,-158.742812,0.00023159,7]
[357050796,1743641439963,-151.0,0.00023159,7]
[357050797,1743641439973,-294.759302,0.00023159,7]
[357050798,1743641439982,-151.0,0.00023159,7]
[357050799,1743641439992,-151.0,0.00023159,7]
[357050800,1743641440002,-151.0,0.00023159,7]
[357050801,1743641440011,-151.0,0.00023159,7]
[357050802,1743641440020,-151.0,0.00023159,7]
[357050803,1743641440030,-151.0,0.00023159,7]
[357050804,1743641440040,-152.206108,0.00023159,7]
[357050805,1743641440050,-151.0,0.00023159,7]
[357050806,1743641440059,-151.0,0.00023159,7]
[357050807,1743641440068,-155.522394,0.00023159,7]
[357050808,1743641440078,-151.0,0.00023159,7]
[357050809,1743641440088,-626.278734,0.00023159,7]
[357050810,1743641440098,-151.0,0.00023159,7]
[357050811,1743641440108,-626.278734,0.00023159,7]
[357050812,1743641440117,-151.0,0.00023159,7]
[357050813,1743641440126,-157.527304,0.00023159,7]
[357050814,1743641440136,-151.0,0.00023159,7]
[357050815,1743641440146,-151.0,0.00023159,7]
[357050816,1743641440155,-161.826159,0.00023159,7]
[357050817,1743641440165,-784.782824,0.00023159,7]
[357050818,1743641440175,-784.782824,0.00023159,7]
[357050819,1743641440184,-175.459424,0.00023159,7]
[357050820,1743641440193,-175.459424,0.00023159,7]
[357050821,1743641440203,-151.0,0.00023159,7]
[357050822,1743641440213,-151.0,0.00023159,7]
[357050823,1743641440222,-151.0,0.00023159,7]
[357050824,1743641440232,-151.0,0.00023159,7]
[357050825,1743641440242,-214.532725,0.00023159,7]
[357050826,1743641440252,-4425.654875,0.00023159,7]
[357050827,1743641440262,-4425.654875,0.00023159,7]
[357050828,1743641440271,-1138.67250664,0.00023185,3]
[357050829,1743641440281,-1138.67250664,0.00023185,3]
[357050830,1743641440292,-151.0,0.00023185,7]
[357050831,1743641440301,-151.0,0.00023185,7]
[357050832,1743641440311,-151.0,0.00023185,7]
[357050833,1743641440321,-151.0,0.00023185,7]
[357050834,1743641440330,-253.001221,0.00023185,7]
[357050835,1743641440340,-151.0,0.00023185,7]
[357050836,1743641440350,-151.0,0.00023185,7]
[357050837,1743641440359,-3902.25652816,0.00023187,2]
[357050838,1743641440369,-150.0,0.00023287,2]
[357050839,1743641440379,-151.0,0.00023368,7]
[357050840,1743641440389,-151.0,0.00023368,7]
[357050841,1743641440399,-151.0,0.00023368,7]
[357050842,1743641440409,-626.278734,0.00023368,7]
[357050843,1743641440418,-151.0,0.00023368,7]
[357050844,1743641440579,-626.278734,0.00023368,7]
[357050845,1743641440590,-151.0,0.00023368,7]
[357050846,1743641440600,-784.782824,0.00023368,7]
[357050847,1743641440609,-784.782824,0.00023368,7]
[357050848,1743641440620,-199.51024,0.00023368,7]
[357050849,1743641440629,-151.0,0.00023368,7]
[357050850,1743641440639,-151.0,0.00023368,7]
[357050851,1743641440649,-151.0,0.00023368,7]
[357050852,1743641440659,-151.0,0.00023368,7]
[357050853,1743641440668,-151.0,0.00023368,7]
[357050854,1743641440677,-1547.23,0.00023368,2]
[357050855,1743641440687,-150.99,0.00023368,2]
[357050856,1743641440697,-2284.41669283,0.00023479,2]
[357050857,1743641440706,-166.66,0.00023555,2]
[357050858,1743641440716,-191.48,0.00023836,2]
[357050859,1743641440725,-1303.81,0.00023915,2]
[357050860,1743641440735,-501.40759638,0.00024138,2]
[357050861,1743641440745,-151.0,0.00024138,7]
[357050862,1743641440754,-171.232596,0.00024138,7]
[357050863,1743641440764,-151.0,0.00024138,7]
[357050864,1743641440774,-4425.654875,0.00024138,7]
[357050865,1743641440783,-4425.654875,0.00024138,7]
[357050866,1743641440794,-3481.80706475,0.000242,2]
[357050867,1743641440804,-166.66,0.00024308,2]
[357050868,1743641440814,-150.0,0.00024657,2]
[357050869,1743641440823,-151.0,0.0002471,7]
[357050870,1743641440833,-151.0,0.0002471,7]
[357050871,1743641440843,-151.0,0.0002471,7]
[357050872,1743641440853,-175.459424,0.0002471,7]
[357050873,1743641440862,-175.459424,0.0002471,7]
[357050875,1743641440871,-1000.0,0.0002471,2]
[357050877,1743641440881,-503.45970058,0.00024773,2]
[357050879,1743641440890,-507.23498983,0.00024773,2]
[357050881,1743641440900,-500.0,0.00024773,2]
[357050883,1743641440910,-151.0,0.00024773,7]
[357050885,1743641440919,-151.0,0.00024773,7]
[357050887,1743641440928,-151.0,0.00024773,7]
[357050889,1743641440938,-157.840018,0.00024773,7]
[357050891,1743641440947,-151.0,0.00024773,7]
[357050893,1743641440957,-163.382266,0.00024773,7]
[357050895,1743641440966,-288.231803,0.00024773,7]
[357050897,1743641440976,-151.0,0.00024773,7]
[357050899,1743641440985,-151.51,0.0002479,2]
[357050901,1743641440994,-169.15939,0.000248,7]
[357050903,1743641441003,-151.0,0.000248,7]
[357050905,1743641441013,-151.0,0.000248,7]
[357050907,1743641441022,-151.0,0.000248,7]
[357050909,1743641441031,-151.0,0.000248,7]
[357050911,1743641441042,-151.0,0.000248,7]
[357050912,1743641441052,-199.857941,0.000248,7]
[357050914,1743641441061,-151.0,0.000248,7]
[357050916,1743641441079,-151.0,0.000248,7]
[357050917,1743641441090,-151.0,0.000248,7]
[357050918,1743641441100,-151.0,0.000248,7]
[357050919,1743641441110,-151.0,0.000248,7]
[357050920,1743641441120,-626.278734,0.000248,7]
[357050921,1743641441130,-151.0,0.000248,7]
[357050922,1743641441140,-626.278734,0.000248,7]
[357050923,1743641441149,-151.0,0.000248,7]
[357050924,1743641441159,-151.0,0.000248,7]
[357050925,1743641441169,-626.278734,0.000248,7]
[357050926,1743641441179,-626.278734,0.000248,7]
[357050927,1743641441188,-151.0,0.000248,7]
[357050928,1743641441198,-151.0,0.000248,7]
[357050929,1743641441207,-784.782824,0.000248,7]
[357050930,1743641441217,-784.782824,0.000248,7]
[357050931,1743641441227,-784.782824,0.000248,7]
[357050932,1743641441236,-784.782824,0.000248,7]
[357050933,1743641441246,-151.0,0.000248,7]
[357050934,1743641441255,-175.459424,0.000248,7]
[357050935,1743641441265,-175.459424,0.000248,7]
[357050936,1743641441275,-268947.667592,0.000248,2]
[357050937,1743641441285,-151.0,0.000248,7]
[357050938,1743641441294,-151.0,0.000248,7]
[357050939,1743641441304,-4425.654875,0.000248,7]
[357050940,1743641441313,-292.251501,0.000248,7]
[357050941,1743641441323,-4425.654875,0.000248,7]
[357050942,1743641441333,-151.0,0.000248,7]
[357050943,1743641441342,-151.0,0.000248,7]
[357050944,1743641441352,-151.0,0.000248,7]
[357050945,1743641441362,-151.0,0.000248,7]
[357050946,1743641441371,-156.11868,0.000248,7]
[357050947,1743641441380,-151.0,0.000248,7]
[357050948,1743641441390,-151.0,0.000248,7]
[357050949,1743641441399,-151.51,0.0002489,2]
[357050950,1743641441408,-151.51,0.0002489,2]
[357050951,1743641441418,-151.0,0.000249,7]
[357050952,1743641441428,-151.0,0.000249,7]
[357050953,1743641441437,-151.0,0.000249,7]
[357050954,1743641441447,-151.0,0.000249,7]
[357050955,1743641441457,-151.0,0.000249,7]
[357050956,1743641441466,-151.0,0.000249,7]
[357050957,1743641441476,-151.0,0.000249,7]
[357050958,1743641441485,-285.71505,0.000249,7]
[357050959,1743641441494,-151.0,0.000249,7]
[357050960,1743641441504,-151.0,0.000249,7]
[357050961,1743641441514,-8600.0,0.000249,9]
[357050962,1743641441524,-225089.45351761,0.000249,2]
[357050963,1743641441859,-250.0,0.00016362,2]
[357050964,1743641441869,-14386.94412804,0.000249,2]
[357050965,1743641441984,-154.179783,0.00020852,2]
[357050966,1743641441994,-176.26117402,0.000249,2]
[357050967,1743641442005,-66106.15790633,0.000249,2]
[357050968,1743641442015,-151.0,0.000249,7]
[357050969,1743641442024,-151.0,0.000249,7]
[357050970,1743641442033,-4425.654875,0.000249,7]
[357050971,1743641442044,-4425.654875,0.000249,7]
[357050972,1743641442054,-151.0,0.000249,7]
[357050973,1743641442063,-286.519975,0.000249,7]
[357050974,1743641442073,-151.0,0.000249,7]
[357050975,1743641442083,-155.73,0.0002498,2]
[357050976,1743641442092,-166.66,0.00025061,2]
[357050977,1743641442102,-151.0,0.00025098,7]
[357050978,1743641442112,-151.0,0.00025098,7]
[357050979,1743641442122,-151.0,0.00025098,7]
[357050980,1743641442132,-151.0,0.00025098,7]
[357050981,1743641442142,-151.0,0.00025098,7]
[357050982,1743641442153,-151.0,0.00025098,7]
[357050983,1743641442163,-293.342349,0.00025098,7]
[357050984,1743641442172,-151.0,0.00025098,7]
[357050985,1743641442182,-151.0,0.00025098,7]
[357050986,1743641442191,-151.0,0.00025098,7]
[357050987,1743641442200,-151.0,0.00025098,7]
[357050988,1743641442209,-626.278734,0.00025098,7]
[357050989,1743641442218,-151.0,0.00025098,7]
[357050990,1743641442227,-626.278734,0.00025098,7]
[357050991,1743641442237,-151.0,0.00025098,7]
[357050992,1743641442246,-151.0,0.00025098,7]
[357050993,1743641442255,-151.0,0.00025098,7]
[357050994,1743641442264,-626.278734,0.00025098,7]
[357050995,1743641442273,-626.278734,0.00025098,7]
[357050996,1743641442283,-151.0,0.00025098,7]
[357050997,1743641442293,-151.0,0.00025098,7]
[357050998,1743641442302,-784.782824,0.00025098,7]
[357050999,1743641442311,-784.782824,0.00025098,7]
[357051000,1743641442321,-784.782824,0.00025098,7]
[357051001,1743641442331,-784.782824,0.00025098,7]
[357051002,1743641442341,-151.0,0.00025098,7]
[357051003,1743641442351,-175.459424,0.00025098,7]
[357051004,1743641442360,-175.459424,0.00025098,7]
[357051005,1743641442369,-175.459424,0.00025098,7]
[357051006,1743641442378,-175.459424,0.00025098,7]
[357051007,1743641442387,-151.0,0.00025098,7]
[357051008,1743641442397,-151.0,0.00025098,7]
[357051009,1743641442407,-151.0,0.00025098,7]
[357051010,1743641442416,-151.0,0.00025098,7]
[357051011,1743641442425,-4425.654875,0.00025098,7]
[357051012,1743641442434,-4425.654875,0.00025098,7]
[357051013,1743641442444,-4425.654875,0.00025098,7]
[357051014,1743641442453,-4425.654875,0.00025098,7]
[357051015,1743641442462,-151.0,0.00025098,7]
[357051016,1743641442472,-151.0,0.00025098,7]
[357051017,1743641442482,-33154.75633352,0.00025098,2]
[357051018,1743641442491,-151.0,0.00025356,7]
[357051019,1743641442500,-255.030016,0.00025356,7]
[357051020,1743641442509,-284.598522,0.00025356,7]
[357051021,1743641442518,-151.0,0.00025356,7]
[357051022,1743641442528,-151.0,0.00025356,7]
[357051023,1743641442538,-151.0,0.00025356,7]
[357051024,1743641442552,-151.0,0.00025356,7]
[357051025,1743641442561,-13564.0,0.000257,2]
[357051026,1743641442572,-166.66,0.00025813,2]
[357051027,1743641442582,-151.51,0.00025909,2]
[357051028,1743641442593,-151.0,0.00025919,7]
[357051029,1743641442602,-151.0,0.00025919,7]
[357051030,1743641442611,-151.0,0.00025919,7]
[357051031,1743641442623,-151.0,0.00025919,7]
[357051032,1743641442633,-193.31689,0.00025919,7]
[357051033,1743641442642,-151.0,0.00025919,7]
[357051034,1743641442652,-626.278734,0.00025919,7]
[357051035,1743641442662,-151.0,0.00025919,7]
[357051036,1743641442673,-151.0,0.00025919,7]
[357051037,1743641442683,-626.278734,0.00025919,7]
[357051038,1743641442692,-151.0,0.00025919,7]
[357051039,1743641442702,-784.782824,0.00025919,7]
[357051040,1743641442713,-784.782824,0.00025919,7]
[357051041,1743641442722,-175.459424,0.00025919,7]
[357051042,1743641442732,-175.459424,0.00025919,7]
[357051043,1743641442742,-151.0,0.00025919,7]
[357051044,1743641442752,-151.0,0.00025919,7]
[357051045,1743641442762,-4425.654875,0.00025919,7]
[357051046,1743641442771,-2818.3795715,0.00025919,7]